bitfinex/quotes_ETHUSD_20220731
["timestamp","ask_amount","ask_price","bid_price","bid_amount"]
[1659269868377,5.02426923,1716.5,1715.9,2.31185778]
[1659269868781,0.14669218,1716.3,1715.9,0.56439778]
[1659269869187,0.15053191,1716.3,1715.9,0.27070382]
[1659269869388,0.15053191,1716.3,1715.7,7.7833]
[1659269869987,0.15053191,1716.3,1715.8,0.0024396]
[1659269870589,0.15053191,1716.3,1715.7,7.7833]
[1659269870790,0.15053191,1716.3,1715.7,8.05392557]
[1659269871532,0.15053191,1716.3,1715.7,8.05636531]
[1659269872196,3.04857863,1716.3,1715.7,0.27062557]
[1659269872394,3.64857863,1716.3,1715.7,0.27062557]
[1659269872820,0.07633329,1716.2,1715.7,0.27360264]
[1659269873247,2.89804672,1716.1,1715.7,0.27360264]
[1659269873465,3.11840561,1716.1,1715.7,0.00297707]
[1659269873615,3.11840561,1716.1,1715.4,4.6519374]
[1659269873616,0.07633329,1716.0,1715.4,0.3413374]
[1659269873815,0.07633329,1716.0,1715.4,0.2913374]
[1659269874223,0.07633329,1716.0,1715.6,0.00297725]
[1659269875047,0.07633329,1716.0,1715.4,2.01521531]
[1659269875442,0.07366671,1715.9,1715.4,2.01521531]
[1659269875762,0.07366671,1715.9,1715.5,0.00220414]
[1659269876571,0.07366671,1715.9,1715.4,0.26720791]
[1659269876727,0.22035889,1715.9,1715.4,0.26720791]
[1659269876925,0.14669218,1715.6,1715.4,0.26941218]
[1659269877872,0.14669218,1715.6,1715.4,0.26720791]
[1659269878040,0.12366671,1715.9,1715.4,0.26720791]
[1659269878358,0.07366671,1715.9,1715.4,0.26720791]
[1659269878564,0.14669218,1715.8,1715.4,0.26720791]
[1659269879871,0.37366671,1715.9,1715.4,0.26720791]
[1659269880167,0.45,1715.9,1715.4,0.26720791]
[1659269880472,0.59669218,1715.9,1715.4,0.26720791]
[1659269880626,0.14669218,1715.6,1715.4,0.26720791]
[1659269880828,0.14669218,1715.8,1715.3,0.00524609]
[1659269881358,0.14669218,1715.8,1715.3,0.0077907]
[1659269881934,3.0447389,1715.8,1715.3,0.0077907]
[1659269882163,0.00383973,1715.7,1715.2,0.26720791]
[1659269882471,3.50188645,1715.7,1715.2,0.26720791]
[1659269882824,3.50188645,1715.7,1715.2,0.26975267]
[1659269883273,3.49800441,1715.7,1715.2,0.26975267]
[1659269883495,0.14669218,1715.6,1715.2,0.26975267]
[1659269883773,0.14669218,1715.4,1715.1,11.5]
[1659269884029,0.14669218,1715.4,1714.8,7.71]
[1659269884178,0.7876,1715.5,1715.1,0.00351504]
[1659269884334,0.14669218,1715.4,1715.1,0.00351504]
[1659269884960,10.93168001,1715.5,1714.8,0.26720791]
[1659269885160,11.23551974,1715.5,1714.8,0.26720791]
[1659269885364,0.32267654,1715.3,1714.8,0.55864471]
[1659269885776,0.17598436,1715.2,1714.8,0.27072346]
[1659269886135,0.17598436,1715.2,1714.8,3.16877018]
[1659269886340,0.05,1715.4,1714.9,2.89804672]
[1659269886541,8.09631072,1715.5,1714.9,6.17683668]
[1659269886754,0.17598436,1715.3,1714.9,6.17683668]
[1659269886984,0.17598436,1715.3,1714.9,2.89804672]
[1659269887187,0.17598436,1715.3,1715.0,0.26720791]
[1659269887483,0.17598436,1715.3,1715.0,1.72415791]
[1659269888407,0.24201743,1715.3,1715.0,2.01554881]
[1659269889397,0.06603307,1715.3,1715.0,2.01554881]
[1659269889991,0.31568414,1715.3,1714.8,0.291433]
[1659269890193,0.31568414,1715.3,1714.8,3.18947972]
[1659269890420,0.31568414,1715.3,1714.9,2.90329403]
[1659269890421,0.13969978,1715.3,1714.9,2.90329403]
[1659269890913,0.13969978,1715.3,1714.9,3.17050194]
[1659269890914,0.06603307,1715.3,1714.9,3.17050194]
[1659269891072,0.06603307,1715.3,1714.9,3.46190194]
[1659269891916,0.06603307,1715.3,1715.0,2.89804672]
[1659269892075,0.06603307,1715.3,1715.0,3.18944812]
[1659269892502,0.07366671,1715.4,1715.0,3.18944812]
[1659269893473,0.07366671,1715.4,1715.0,4.64642812]
[1659269897839,0.07633329,1715.3,1714.9,0.27478767]
[1659269898751,0.14669218,1715.2,1714.9,0.27245522]
[1659269899773,0.14669218,1714.9,1714.8,0.00248931]
[1659269899933,0.15053191,1715.1,1714.7,3.3284]
[1659269900569,0.15053191,1715.1,1714.6,8.4823655]
[1659269901666,0.10020798,1714.9,1714.6,8.4823655]
[1659269901863,0.10020798,1714.9,1714.7,0.26720791]
[1659269902634,0.07366671,1714.8,1714.4,0.16422166]
[1659269903057,0.07366671,1714.8,1714.1,15.4186]
[1659269903256,0.07366671,1714.8,1714.1,18.21664672]
[1659269903462,0.3,1714.8,1714.1,18.21664672]
[1659269903655,3.3,1714.8,1714.3,0.00242106]
[1659269903875,0.14669218,1714.5,1714.3,0.00242106]
[1659269904334,0.14669218,1714.5,1714.1,7.7297]
[1659269904986,0.05,1714.7,1714.1,10.62774672]
[1659269905282,11.86178384,1714.8,1714.1,10.62774672]
[1659269905436,0.09984685,1714.5,1714.1,10.62774672]
[1659269905870,0.09984685,1714.5,1714.2,0.2915288]
[1659269907463,0.09984685,1714.5,1714.3,0.34087462]
[1659269907651,0.09984685,1714.5,1714.1,9.47886]
[1659269907652,0.09984685,1714.5,1714.1,7.7297]
[1659269909100,0.14669218,1714.3,1713.9,11.5]
[1659269909284,6.0447389,1714.3,1713.6,0.05]
[1659269909588,6.0447389,1714.3,1714.0,0.0035173]
[1659269909589,2.89804672,1714.2,1714.0,0.0035173]
[1659269909889,8.60117302,1714.1,1714.0,0.0035173]
[1659269910477,8.7478652,1714.1,1713.5,7.602]
[1659269910821,8.7478652,1714.1,1713.6,0.00541765]
[1659269911320,1.7478652,1714.1,1713.6,0.00541765]
[1659269912593,4.64591192,1714.1,1713.6,0.00541765]
[1659269912796,5.1952882,1714.1,1713.6,0.00541765]
[1659269913001,0.14669218,1713.8,1713.3,0.05]
[1659269913185,0.14669218,1713.8,1713.2,0.44]
[1659269913186,0.14669218,1713.5,1713.2,0.44]
[1659269913384,2.89804672,1713.4,1713.2,0.44]
[1659269913581,14.87759218,1713.7,1713.2,0.44]
[1659269913582,7.62294672,1713.6,1713.5,0.01192]
[1659269914194,0.011,1713.5,1713.2,0.44]
[1659269914429,3.49804672,1713.4,1713.2,0.44]
[1659269914926,0.14669218,1713.3,1713.2,0.44]
[1659269915079,3.0447389,1713.3,1713.2,0.44]
[1659269915277,6.0447389,1713.3,1713.2,0.44]
[1659269915515,6.4829389,1713.3,1713.2,0.44]
[1659269915719,6.9829389,1713.3,1713.2,0.44]
[1659269916515,6.9829389,1713.3,1713.2,0.0001]
[1659269916516,13.1149389,1713.3,1713.2,0.0001]
[1659269916682,11.78811192,1713.3,1713.2,0.0001]
[1659269917083,5.4632,1713.3,1713.2,0.0001]
[1659269917329,4.725,1713.3,1713.2,0.0001]
[1659269917484,0.3,1713.4,1713.2,0.0001]
[1659269917691,8.72077951,1713.7,1713.2,0.0001]
[1659269917938,0.14669218,1713.4,1713.2,0.0001]
[1659269918838,8.58017302,1713.3,1713.2,0.0001]
[1659269919155,0.08017302,1713.3,1713.2,0.0001]
[1659269919473,6.59589893,1713.6,1713.2,0.0001]
[1659269919474,8.3257,1713.6,1713.2,0.0001]
[1659269919673,7.8876,1713.6,1713.2,0.0001]
[1659269919879,3.2206,1713.6,1713.2,0.0001]
[1659269920033,3.2206,1713.6,1713.2,0.34097462]
[1659269920234,8.36285253,1713.7,1713.2,0.34097462]
[1659269920434,11.26089925,1713.7,1713.2,0.34097462]
[1659269920978,8.36285253,1713.7,1713.2,0.34097462]
[1659269921279,0.20205253,1713.7,1713.2,0.39428244]
[1659269921434,0.12133948,1713.3,1713.2,0.39428244]
[1659269921634,0.12133948,1713.3,1713.2,0.34097462]
[1659269922079,0.12133948,1713.3,1713.2,0.37954608]
[1659269922233,0.12133948,1713.3,1713.2,0.4328539]
[1659269923038,0.12133948,1713.3,1713.2,0.0001]
[1659269923553,0.12133948,1713.3,1713.2,2.89814672]
[1659269924347,0.12133948,1713.3,1713.2,5.89814672]
[1659269924653,0.12133948,1713.3,1713.2,6.23902134]
[1659269924850,0.12133948,1713.3,1713.2,6.29232916]
[1659269925274,0.12133948,1713.3,1713.2,3.0001]
[1659269925644,0.12133948,1713.3,1713.2,0.0001]
[1659269926138,0.12133948,1713.3,1713.2,0.34097462]
[1659269926780,0.12133948,1713.3,1713.2,0.39428244]
[1659269928549,0.12133948,1713.3,1713.2,0.0001]
[1659269930356,0.12133948,1713.3,1713.2,2.89814672]
[1659269930560,0.12133948,1713.3,1713.2,6.23902134]
[1659269930980,0.12133948,1713.3,1713.2,0.0001]
[1659269932987,0.07133948,1713.3,1713.2,0.0001]
[1659269934001,0.12165573,1713.3,1713.2,0.0001]
[1659269936066,0.90596972,1713.3,1713.2,0.0001]
[1659269936506,0.12165573,1713.3,1713.2,0.0001]
[1659269941029,0.12165573,1713.3,1713.2,0.05953047]
[1659269942053,0.55985573,1713.3,1712.7,4.3842]
[1659269942215,0.12165573,1713.3,1712.9,0.00238312]
[1659269942740,0.12165573,1713.3,1712.9,2.90042984]
[1659269942956,0.12165573,1713.3,1713.0,3.23892134]
[1659269943241,0.12165573,1713.3,1713.0,0.34087462]
[1659269944759,0.12165573,1713.3,1713.0,3.18892134]
[1659269944907,0.12165573,1713.3,1713.1,2.89804672]
[1659269946232,0.12165573,1713.3,1713.1,3.18892134]
[1659269955411,0.12165573,1713.3,1713.1,3.2274928]
[1659269955662,0.12165573,1713.3,1713.2,2.89804672]
[1659269956295,0.12165573,1713.3,1713.2,2.95135454]
[1659269961219,0.12165573,1713.3,1713.2,5.89804672]
[1659269961772,0.12165573,1713.3,1713.2,5.84804672]
[1659269963350,0.12165573,1713.3,1713.2,5.90135454]
[1659269965492,0.12165573,1713.3,1713.2,3.0]
[1659269965697,0.12165573,1713.3,1713.1,3.32944608]
[1659269965879,0.12165573,1713.3,1713.1,6.2274928]
[1659269967092,0.12165573,1713.3,1712.9,4.43105698]
[1659269967093,0.19798902,1713.3,1712.9,0.00240356]
[1659269967262,0.19798902,1713.3,1712.8,10.8047]
[1659269967455,0.19798902,1713.3,1712.9,3.0]
[1659269967892,0.19798902,1713.3,1712.9,3.00240356]
[1659269968482,0.19798902,1713.3,1712.9,3.0]
[1659269970730,0.12165573,1713.3,1713.0,4.64749134]
[1659269970913,0.12165573,1713.3,1713.1,2.95135454]
[1659269971113,0.12165573,1713.3,1713.2,0.05330782]
[1659269971559,0.05,1713.7,1713.6,4.0]
[1659269971716,0.05,1714.1,1713.6,9.89804672]
[1659269971913,16.0644,1714.4,1713.8,0.05330782]
[1659269971914,0.05,1714.3,1713.8,0.05330782]
[1659269972157,15.6265,1714.4,1713.9,0.29087462]
[1659269972913,15.6265,1714.4,1713.9,0.31997983]
[1659269973222,15.9265,1714.4,1713.9,0.31997983]
[1659269973950,15.6265,1714.4,1713.9,0.31997983]
[1659269974594,15.75667301,1714.4,1713.9,0.31997983]
[1659269975602,3.33607301,1714.4,1713.9,0.31997983]
[1659269975804,3.2059,1714.4,1713.9,0.31997983]
[1659269976400,3.2059,1714.4,1714.1,0.05330782]
[1659269976627,8.8559,1714.6,1714.3,0.05330782]
[1659269976849,8.8559,1714.6,1714.1,0.35460589]
[1659269977022,4.0027,1714.6,1714.1,3.19934479]
[1659269977225,4.0027,1714.6,1714.2,3.0]
[1659269977411,4.58729218,1714.6,1713.9,4.4812]
[1659269977597,4.58729218,1714.6,1713.8,3.0]
[1659269977598,0.14669218,1714.2,1713.8,3.0]
[1659269977791,0.14669218,1714.2,1713.8,5.89804672]
[1659269977996,0.14669218,1714.2,1713.7,3.0589]
[1659269978435,0.27686519,1714.2,1713.7,3.0589]
[1659269979331,0.13017301,1714.2,1713.7,3.0589]
[1659269979555,0.27686519,1714.2,1713.7,3.0589]
[1659269980055,0.27686519,1714.2,1713.6,8.04674608]
[1659269980210,0.27686519,1714.2,1713.7,3.0]
[1659269980551,0.13017301,1714.2,1713.7,3.0]
[1659269982962,3.02821973,1714.2,1713.7,3.0]
[1659269983204,0.58469218,1714.1,1713.6,8.04674608]
[1659269983388,0.438,1714.1,1713.6,8.04674608]
[1659269984417,0.43487079,1714.1,1713.6,8.04674608]
[1659269986899,5.39448672,1714.2,1713.6,8.04674608]
[1659269987107,5.52465973,1714.2,1713.6,8.04674608]
[1659269987510,5.52465973,1714.2,1713.7,0.05900935]
[1659269993011,4.06621973,1714.2,1713.7,0.05900935]
[1659269993255,4.06621973,1714.2,1713.7,0.34988397]
[1659269995574,1.16817301,1714.2,1713.7,0.34988397]
[1659269995779,1.16817301,1714.2,1713.8,0.03857146]
[1659269995780,0.13017301,1714.2,1713.8,0.03857146]
[1659270000397,3.0668,1714.3,1713.8,0.03857146]
[1659270000782,3.0668,1714.3,1713.9,0.29087462]
[1659270001506,3.0668,1714.3,1713.9,0.34418244]
[1659270002062,0.13017301,1714.4,1713.9,0.34418244]
[1659270009086,0.13017301,1714.4,1714.2,0.79743144]
[1659270010687,3.02821973,1714.4,1714.2,0.79743144]
[1659270010889,7.89804672,1714.3,1714.2,0.79743144]
[1659270011324,2.89804672,1714.3,1714.2,0.79743144]
[1659270011526,0.13017301,1714.4,1714.2,0.79743144]
[1659270011527,4.48652973,1714.4,1714.2,0.79743144]
[1659270011897,1.58848301,1714.4,1714.2,0.79743144]
[1659270012107,0.13017301,1714.4,1714.2,0.79743144]
[1659270013198,3.02821973,1714.4,1714.2,0.79743144]
[1659270013595,2.89804672,1714.3,1714.2,0.79743144]
[1659270014696,3.0447389,1714.3,1714.2,0.79743144]
[1659270015931,2.89804672,1714.3,1714.2,0.79743144]
[1659270017527,3.62821973,1714.4,1714.2,0.79743144]
[1659270017754,3.62821973,1714.4,1713.9,0.32715616]
[1659270018125,3.62821973,1714.4,1714.2,0.79743144]
[1659270023026,3.62821973,1714.4,1713.9,0.32715616]
[1659270023438,3.62821973,1714.4,1714.2,0.79743144]
[1659270024612,5.37825973,1714.4,1714.2,0.79743144]
[1659270025286,2.91675,1714.6,1714.3,0.4379]
[1659270025454,0.17746286,1714.7,1714.4,2.89804672]
[1659270025653,0.17746286,1714.7,1714.3,0.4379]
[1659270025654,0.02809,1714.7,1714.3,2.89804672]
[1659270025842,0.02809,1714.7,1714.2,1.08892144]
[1659270026041,0.02809,1714.7,1714.2,0.79743144]
[1659270026557,0.02809,1714.7,1714.2,3.92033144]
[1659270026764,0.02809,1714.7,1714.3,3.0]
[1659270027879,0.02809,1714.7,1714.2,3.92033144]
[1659270028191,0.02809,1714.7,1714.2,4.37384606]
[1659270028348,0.02809,1714.7,1714.2,3.57641462]
[1659270028762,0.02809,1714.7,1714.4,0.79743144]
[1659270029261,0.02809,1714.7,1714.4,1.25093337]
[1659270033596,0.02809,1714.7,1714.4,3.00006337]
[1659270033777,0.02809,1714.7,1714.4,2.20263193]
[1659270034099,0.02809,1714.7,1714.6,0.79743144]
[1659270035578,0.02809,1714.7,1714.6,0.85617801]
[1659270037376,0.02809,1714.7,1714.6,0.80287019]
[1659270037772,0.02809,1714.7,1714.6,1.14758453]
[1659270040642,0.02809,1714.7,1714.6,4.14758453]
[1659270041006,0.02809,1714.7,1714.6,7.04563125]
[1659270042816,0.05,1715.1,1715.0,6.51031782]
[1659270043017,0.05,1715.5,1715.0,20.16454846]
[1659270043218,8.1144,1716.0,1715.1,2.89804672]
[1659270043219,0.05,1715.7,1715.1,2.89804672]
[1659270043432,0.05,1715.9,1715.2,0.29135]
[1659270043634,4.5052,1715.9,1715.5,0.79743144]
[1659270044217,5.1052,1715.9,1715.5,0.79743144]
[1659270046528,0.14669218,1715.6,1715.5,0.79743144]
[1659270046722,5.64669218,1715.6,1715.5,0.79743144]
[1659270046927,0.14669218,1715.3,1715.0,7.7026]
[1659270047241,0.14669218,1715.3,1714.8,3.1761]
[1659270047857,3.0447389,1715.3,1714.7,8.3113]
[1659270048058,3.6447389,1715.3,1714.7,10.0601169]
[1659270048465,3.6447389,1715.3,1714.6,0.29149]
[1659270048466,0.14669218,1715.1,1714.6,0.29149]
[1659270048671,0.14669218,1715.1,1714.5,3.1898]
[1659270048837,3.7824389,1715.1,1714.5,3.1898]
[1659270049039,4.0824389,1715.1,1714.4,14.14033]
[1659270049432,4.0824389,1715.1,1714.4,12.6829]
[1659270049633,2.89804672,1715.0,1714.4,12.6829]
[1659270050323,2.89804672,1715.0,1714.4,8.3113]
[1659270050524,2.89804672,1715.0,1714.4,8.94753664]
[1659270051146,2.89804672,1715.0,1714.4,10.40507664]
[1659270051348,3.98474705,1715.1,1714.4,8.65601434]
[1659270051533,3.98474705,1715.1,1714.4,8.94751434]
[1659270051735,3.98474705,1715.1,1714.6,1.45736]
[1659270051944,3.54704705,1715.1,1714.6,1.45736]
[1659270052363,3.54704705,1715.1,1714.6,1.74883]
[1659270052572,0.04900033,1715.1,1714.6,1.74883]
[1659270052876,0.04900033,1715.1,1714.8,0.05330782]
[1659270053084,0.04900033,1715.1,1715.0,0.05330782]
[1659270053468,0.04900033,1715.1,1715.0,0.39802216]
[1659270053674,0.04900033,1715.1,1715.0,0.57400652]
[1659270054188,0.04900033,1715.1,1715.0,0.67410659]
[1659270054544,0.04900033,1715.1,1715.0,3.67410659]
[1659270055591,0.04900033,1715.1,1715.0,3.62079877]
[1659270056163,0.04900033,1715.1,1715.0,3.44481441]
[1659270061231,0.04900033,1715.1,1715.0,6.34286113]
[1659270063749,0.04900033,1715.1,1715.0,6.39616895]
[1659270063955,0.05,1715.5,1715.0,7.28750895]
[1659270064121,0.05,1715.7,1715.2,1.45672]
[1659270064445,11.9909,1715.8,1715.2,4.84165571]
[1659270065234,11.9909,1715.8,1715.2,8.03104243]
[1659270065416,11.9909,1715.8,1715.3,1.7480084]
[1659270065640,11.9909,1715.8,1715.3,4.7480084]
[1659270065806,11.9909,1715.8,1715.3,5.0393384]
[1659270066009,11.9909,1715.8,1715.4,1.45667]
[1659270066548,4.0186,1715.8,1715.4,1.51852242]
[1659270066915,4.0186,1715.8,1715.4,1.80984242]
[1659270067254,4.0186,1715.8,1715.4,2.10117712]
[1659270067454,4.0186,1715.8,1715.5,1.45663]
[1659270069780,0.05,1716.1,1715.7,1.45651]
[1659270069980,3.2412,1716.3,1715.7,4.35137247]
[1659270070169,0.05,1716.4,1715.8,2.95135454]
[1659270070369,0.00291697,1716.2,1716.0,0.34452252]
[1659270070581,0.00291697,1716.2,1716.1,0.08123625]
[1659270070804,0.00291697,1716.2,1716.1,3.08123625]
[1659270070978,0.00291697,1716.2,1716.1,3.03123625]
[1659270071187,0.05,1716.6,1716.1,3.03123625]
[1659270071373,15.0856,1716.8,1716.1,0.03123625]
[1659270071577,3.19804672,1716.7,1716.0,12.68981434]
[1659270071920,3.33534672,1716.6,1716.0,12.68981434]
[1659270072216,3.93534672,1716.6,1716.0,12.68981434]
[1659270072759,3.93534672,1716.6,1716.0,8.13351434]
[1659270073548,3.93830751,1716.6,1716.0,8.13351434]
[1659270074551,2.89804672,1716.5,1716.0,0.34471434]
[1659270074710,2.89804672,1716.5,1715.9,3.0]
[1659270075338,0.04999999,1716.4,1715.9,3.0]
[1659270075573,0.04999999,1716.4,1715.9,0.63598724]
[1659270077736,0.19669217,1716.4,1715.9,0.34471434]
[1659270078084,0.19669217,1716.4,1715.7,15.3302]
[1659270078085,2.89804672,1716.3,1715.7,15.3302]
[1659270078266,2.89804672,1716.3,1715.8,3.0]
[1659270079584,3.0447389,1716.4,1715.8,3.0]
[1659270080488,0.4901391,1716.5,1715.8,7.93701992]
[1659270080694,0.4901391,1716.5,1715.9,0.34471434]
[1659270080695,0.0027391,1716.5,1715.9,0.34471434]
[1659270081115,0.04999999,1716.5,1715.9,0.34471434]
[1659270081511,2.94804671,1716.5,1715.9,0.34471434]
[1659270081709,2.94804671,1716.5,1715.8,10.4182]
[1659270081710,0.14669218,1716.4,1715.8,10.4182]
[1659270081954,0.04999999,1716.3,1715.8,3.0616]
[1659270082097,2.94804671,1716.3,1715.8,3.0616]
[1659270082296,2.94804671,1716.3,1715.7,8.15947]
[1659270082297,3.24804671,1716.3,1715.7,8.4507576]
[1659270083742,3.24804671,1716.3,1715.7,8.79547194]
[1659270084151,3.24804671,1716.3,1715.7,10.25198194]
[1659270084459,0.14669218,1716.0,1715.5,3.34132]
[1659270084627,0.14669218,1716.0,1715.4,3.0226]
[1659270084628,0.19669217,1716.0,1715.4,3.0226]
[1659270084831,0.19669217,1716.0,1715.4,5.92064672]
[1659270085029,0.19669217,1716.0,1715.4,3.0226]
[1659270086861,0.04999999,1716.0,1715.4,5.92064672]
[1659270087460,0.04999999,1716.0,1715.4,6.26536106]
[1659270087608,0.04999999,1716.0,1715.4,6.5617888]
[1659270088369,0.04999999,1716.0,1715.5,0.2913181]
[1659270088601,0.04999999,1716.0,1715.6,0.00511614]
[1659270088799,2.94804672,1716.2,1715.6,0.00511614]
[1659270089001,2.89804672,1716.2,1715.6,0.00511614]
[1659270089509,11.47530862,1716.4,1715.7,2.95135454]
[1659270089510,0.05,1716.4,1715.7,2.95135454]
[1659270089676,0.05,1716.5,1715.8,5.90316227]
[1659270090010,3.2094,1716.6,1715.9,2.89804672]
[1659270090208,3.1594,1716.6,1715.9,2.89804672]
[1659270090503,0.00291605,1716.5,1715.9,2.89804672]
[1659270091091,3.1594,1716.6,1715.9,2.89804672]
[1659270091683,0.0032574,1716.5,1715.9,2.89804672]
[1659270092098,0.4406574,1716.5,1715.8,10.7868]
[1659270092606,0.04999999,1716.4,1715.8,10.7868]
[1659270093317,0.04999999,1716.4,1715.8,11.07805]
[1659270093475,0.04999999,1716.4,1715.8,12.5343]
[1659270094187,0.04999999,1716.4,1715.9,1.45624]
[1659270094387,0.04999999,1716.4,1715.9,1.74748]
[1659270094716,0.04999999,1716.4,1715.9,1.45624]
[1659270095012,0.04999999,1716.4,1715.8,10.7868]
[1659270095156,0.04999999,1716.4,1715.8,13.97610672]
[1659270095466,0.04999999,1716.4,1715.8,17.65062798]
[1659270095617,0.04999999,1716.4,1715.8,17.65574353]
[1659270095818,0.04999999,1716.4,1715.9,1.74756]
[1659270096032,0.04999999,1716.4,1716.0,0.2912602]
[1659270098256,0.04999999,1716.4,1715.9,1.4563]
[1659270099960,0.04999999,1716.4,1715.8,14.32594661]
[1659270100141,0.04999999,1716.4,1715.8,14.03467661]
[1659270103564,0.04999999,1716.4,1715.8,14.32595071]
[1659270104454,0.04999999,1716.4,1715.8,14.61722071]
[1659270105155,0.04999999,1716.4,1715.8,16.07357071]
[1659270105533,0.04999999,1716.4,1715.9,0.2912688]
[1659270108109,0.04999999,1716.4,1715.9,2.09232314]
[1659270110731,0.04999999,1716.4,1715.9,2.38358314]
[1659270110930,0.04999999,1716.4,1715.9,2.09231434]
[1659270112432,0.04999999,1716.4,1716.0,0.2912617]
[1659270114441,3.53253889,1716.4,1715.9,0.34982959]
[1659270114646,3.09473889,1716.4,1715.9,0.34982959]
[1659270115590,0.19669217,1716.4,1716.0,0.2912705]
[1659270118280,0.04999999,1716.4,1716.0,0.2912705]
[1659270118991,0.04999999,1716.4,1716.0,1.7475305]
[1659270121987,8.5861,1716.6,1716.0,0.5825105]
[1659270122189,0.00286404,1716.5,1716.1,1.45617]
[1659270122716,0.00286404,1716.5,1716.2,1.45609]
[1659270123095,8.1431,1716.7,1716.2,1.45609]
[1659270123988,0.6,1716.7,1716.2,4.35413672]
[1659270124236,11.50286393,1716.8,1716.3,0.2890808]
[1659270124433,11.50286393,1716.8,1716.3,1.7450308]
[1659270124826,11.5,1716.8,1716.3,2.08974514]
[1659270125341,11.8,1716.8,1716.3,2.08974514]
[1659270125521,12.1,1716.8,1716.3,2.38093654]
[1659270125695,11.54999999,1716.8,1716.3,5.38093654]
[1659270129566,11.54999999,1716.8,1716.1,1.45604]
[1659270129567,3.4825389,1716.7,1716.1,1.45604]
[1659270129771,0.14669218,1716.2,1716.0,3.0193]
[1659270130079,0.14669218,1716.2,1715.8,7.6158]
[1659270130955,0.19669218,1716.4,1715.8,7.6158]
[1659270131123,0.14669218,1716.4,1715.8,7.6158]
[1659270133228,0.19669217,1716.4,1715.8,7.6158]
[1659270134340,0.19669217,1716.4,1715.8,7.61845284]
[1659270134564,0.04999999,1716.4,1715.8,7.61845284]
[1659270135845,0.01895451,1716.4,1715.8,7.61845284]
[1659270136037,0.14669218,1716.2,1715.8,7.6158]
[1659270136481,0.14669218,1716.2,1715.7,0.34471434]
[1659270136482,0.14669218,1716.0,1715.7,0.34471434]
[1659270136705,0.2,1716.1,1715.4,3.0201]
[1659270136706,0.14669218,1715.7,1715.4,3.0201]
[1659270137070,0.14669218,1715.7,1715.3,8.0791]
[1659270137500,0.16564669,1715.7,1715.3,8.0791]
[1659270137683,0.16564669,1715.7,1715.0,3.0701]
[1659270137684,0.14669218,1715.5,1715.0,3.0701]
[1659270137984,0.14669218,1715.5,1715.0,11.0992]
[1659270138913,0.14669218,1715.5,1715.0,11.0492]
[1659270141229,0.16564669,1715.6,1715.0,11.0492]
[1659270141367,0.14669218,1715.5,1715.1,0.34471434]
[1659270141566,0.01895451,1715.6,1715.1,0.34471434]
[1659270142521,0.01895451,1715.6,1715.2,1.45674]
[1659270142872,0.01895451,1715.6,1715.2,1.48890759]
[1659270143187,0.01895451,1715.6,1715.2,1.78024759]
[1659270143388,7.722,1715.8,1715.3,0.34471434]
[1659270143790,7.722,1715.8,1715.4,1.45652]
[1659270144025,4.6768,1715.8,1715.4,1.45652]
[1659270144426,4.6768,1715.8,1715.4,1.7478331]
[1659270144627,11.3283,1715.9,1715.4,1.7478331]
[1659270144833,11.7663,1715.9,1715.4,1.7478331]
[1659270145662,11.3283,1715.9,1715.4,1.7478331]
[1659270146755,11.3283,1715.9,1715.4,1.45652]
[1659270147059,11.3283,1715.9,1715.4,1.74784]
[1659270147233,11.3283,1715.9,1715.4,2.0391653]
[1659270147960,11.3283,1715.9,1715.4,1.74784]
[1659270148263,7.70399218,1716.1,1715.5,8.03012212]
[1659270148264,0.05,1716.1,1715.5,8.03012212]
[1659270148409,0.00281969,1716.2,1715.6,5.89804672]
[1659270148410,0.05,1716.2,1715.6,5.89804672]
[1659270148609,0.01883,1716.2,1715.6,10.85443672]
[1659270148827,0.01883,1716.2,1715.7,0.34471434]
[1659270149853,0.01883,1716.2,1715.7,0.92724414]
[1659270150058,0.01883,1716.2,1715.7,0.63599414]
[1659270150556,0.01883,1716.2,1715.7,0.66662483]
[1659270150758,0.01883,1716.2,1715.7,3.56467155]
[1659270150961,0.01883,1716.2,1715.8,3.0]
[1659270151123,0.01883,1716.2,1715.9,0.34471434]
[1659270151771,0.01883,1716.2,1715.9,1.80086434]
[1659270151949,0.01883,1716.2,1715.9,0.34471434]
[1659270154449,0.002877,1716.1,1715.9,0.34471434]
[1659270158538,0.002877,1716.1,1715.8,0.03062891]
[1659270168376,0.002877,1716.1,1715.6,7.84151434]
[1659270168579,0.002877,1716.1,1715.6,3.60191434]
[1659270168790,0.14669218,1715.8,1715.5,8.0687]
[1659270168992,4.08459218,1716.0,1715.2,1.7482]
[1659270169307,1.25384218,1716.0,1715.2,12.91514672]
[1659270169493,0.002877,1715.9,1715.2,12.91514672]
[1659270170464,0.14669218,1715.8,1715.3,0.2913551]
[1659270170702,0.14669218,1715.8,1715.2,12.91514672]
[1659270170703,0.16596218,1715.8,1715.2,8.2689]
[1659270171069,0.60396218,1715.8,1715.2,8.2689]
[1659270171268,0.90396218,1715.8,1715.2,8.2689]
[1659270171485,1.20396218,1715.8,1715.2,8.2689]
[1659270171694,1.20396218,1715.8,1715.2,8.61361434]
[1659270171906,1.20396218,1715.8,1715.2,10.36178434]
[1659270172313,0.76596218,1715.8,1715.2,10.39249654]
[1659270172517,0.46596218,1715.8,1715.3,0.2913638]
[1659270173501,0.46596218,1715.8,1715.2,10.39249654]
[1659270174942,0.01927,1715.8,1715.3,1.7480906]
[1659270175241,0.01927,1715.8,1715.4,0.03070862]
[1659270175406,0.01927,1715.8,1715.3,3.17008534]
[1659270176127,0.01927,1715.8,1715.4,1.45662]
[1659270176490,0.01927,1715.8,1715.4,1.7479592]
[1659270177521,0.01927,1715.8,1715.4,2.09267354]
[1659270178120,0.01927,1715.8,1715.5,0.05330782]
[1659270179250,0.01927,1715.8,1715.6,2.89804672]
[1659270179399,0.01927,1715.8,1715.7,3.0]
[1659270181617,0.01927,1715.8,1715.7,3.04892923]
[1659270182257,0.01927,1715.8,1715.7,3.39364357]
[1659270185449,0.01927,1715.8,1715.7,0.39364357]
[1659270194565,0.34669218,1715.4,1714.7,1.16238259]
[1659270194799,0.14669218,1714.6,1714.4,2.12358632]
[1659270194997,0.14669218,1714.6,1714.0,1.93587729]
[1659270194998,0.14669218,1714.5,1713.8,1.31120435]
[1659270195170,0.16605218,1714.5,1713.8,1.31120435]
[1659270195501,0.14669218,1714.3,1713.8,1.31120435]
[1659270195822,0.14669218,1714.3,1713.6,3.5]
[1659270195823,0.16605218,1714.3,1713.6,3.5]
[1659270195984,0.14669218,1714.1,1713.6,3.5]
[1659270196184,0.16608218,1714.1,1713.6,3.5]